[Event "57th Biel Festival ATO 2024"]
[Site "Biel"]
[Date "2024.07.16"]
[Round "1.18"]
[White "Muehlemann, Walter"]
[Black "Titov, Dmitrii"]
[Result "0-1"]
[ECO "B50"]
[WhiteElo "1677"]
[BlackElo "1899"]
[Annotator "NA RC"]
[PlyCount "78"]
[EventDate "2024.07.03"]
[EventType "swiss"]
[EventCountry "SUI"]
[SourceTitle "playchess.com"]
[Source "ChessBase"]
[SourceQuality "1"]
[TimeControl "40/5400+30:1800+30"]

1. e4 {[%emt 0:00:05]} c5 {[%emt 0:00:09]} 2. Nf3 {[%emt 0:00:10]} d6 {[%emt 0:00:14]} 3. c3 {[%emt 0:01:04]} Nf6 {[%emt 0:01:08]} 4. d3 {[%emt 0:00:56]} g6 {[%emt 0:02:37]} 5. Be2 {[%emt 0:01:33]} Bg7 {[%emt 0:00:15]} 6. O-O {[%emt 0:00:36]} O-O {[%emt 0:00:14]} 7. Nbd2 {[%emt 0:02:23]} Nc6 {[%emt 0:05:51]} 8. Nc4 {[%emt 0:05:20]} b5 {[%emt 0:04:59]} 9. Ne3 {[%emt 0:01:54]} e6 {[%emt 0:04:22]} 10. Bd2 {[%emt 0:02:14]} a5 {[%emt 0:01:12]} 11. Qc2 {[%emt 0:02:11]} Ba6 {[%emt 0:06:21]} 12. a3 {[%emt 0:02:49]} Qd7 {[%emt 0:07:32]} 13. Rfd1 {[%emt 0:02:18]} Rfc8 {[%emt 0:02:11]} 14. Rac1 {[%emt 0:01:42]} a4 {[%emt 0:04:41]} 15. Qb1 {[%emt 0:01:40]} Rab8 {[%emt 0:03:10]} 16. b4 {[%emt 0:01:59]} axb3 {[%emt 0:00:38]} 17. Qxb3 {[%emt 0:00:41]} Bh6 {[%emt 0:14:25]} 18. Qc2 {[%emt 0:01:50]} b4 {[%emt 0:03:57]} 19. Rb1 {[%emt 0:05:34]} Nxe4 {[%emt 0:06:20]} 20. axb4 {[%emt 0:03:56]} cxb4 {[%emt 0:00:55]} 21. Qa4 {[%emt 0:06:24]} Bb5 {[%emt 0:01:51]} 22. Qa1 {[%emt 0:00:39]} Nxc3 {[%emt 0:02:23]} 23. Bxc3 {[%emt 0:00:36]} bxc3 {[%emt 0:00:03]} 24. Qxc3 {[%emt 0:01:19]} Bg7 {[%emt 0:02:58]} 25. Qd2 {[%emt 0:02:41]} Nd4 {[%emt 0:04:27]} 26. Rdc1 {[%emt 0:04:34]} Nxe2+ {[%emt 0:01:32]} 27. Qxe2 {[%emt 0:00:21]} Rxc1+ {[%emt 0:00:18]} 28. Rxc1 {[%emt 0:00:16]} Rc8 {[%emt 0:03:54]} 29. Rd1 {[%emt 0:02:43]} Rc3 {[%emt 0:01:24]} 30. Ne1 {[%emt 0:03:34]} Qc6 {[%emt 0:01:25]} 31. N1c2 {[%emt 0:02:25]} Ba4 {[%emt 0:03:00]} 32. Nb4 {[%emt 0:03:52]} Qc5 {[%emt 0:02:32]} 33. Rb1 {[%emt 0:03:05]} Rc1+ {[%emt 0:00:26]} 34. Rxc1 {[%emt 0:00:55]} Qxc1+ {[%emt 0:00:02]} 35. Nf1 {[%emt 0:00:37]} Qb2 {[%emt 0:02:48]} 36. Qe4 {[%emt 0:01:00]} Bb5 {[%emt 0:04:17]} 37. Qa8+ {[%emt 0:03:33]} Bf8 {[%emt 0:00:03]} 38. Nc6 {[%emt 0:01:39]} Bxd3 {[%emt 0:01:09]} 39. Qd8 {[%emt 0:01:53]} Qa1 {[%emt 0:02:29]} 0-1

[Event "57th Biel Festival ATO 2024"]
[Site "Biel"]
[Date "2024.07.16"]
[Round "1.19"]
[White "Jordan, Theodor"]
[Black "Meier, Herbert"]
[Result "1-0"]
[ECO "C27"]
[WhiteElo "1894"]
[BlackElo "1678"]
[Annotator "NA"]
[PlyCount "63"]
[EventDate "2024.07.03"]
[EventType "swiss"]
[EventCountry "SUI"]
[SourceTitle "playchess.com"]
[Source "ChessBase"]
[SourceQuality "1"]
[TimeControl "40/5400+30:1800+30"]

1. e4 {[%emt 0:00:05]} e5 {[%emt 0:00:17]} 2. Bc4 {[%emt 0:01:11]} Nf6 {[%emt 0:00:27]} 3. Nc3 {[%emt 0:00:10]} Bc5 {[%emt 0:01:41]} 4. d3 {[%emt 0:00:51]} h6 {[%emt 0:02:51]} 5. h3 {[%emt 0:01:22]} d6 {[%emt 0:00:22]} 6. Nf3 {[%emt 0:00:07]} c6 {[%emt 0:01:00]} 7. O-O {[%emt 0:02:08]} O-O {[%emt 0:01:20]} 8. Re1 {[%emt 0:01:22]} Re8 {[%emt 0:02:14]} 9. Na4 {[%emt 0:02:28]} b5 {[%emt 0:03:10]} 10. Nxc5 {[%emt 0:01:19]} bxc4 {[%emt 0:01:38]} 11. Na4 {[%emt 0:00:34]} cxd3 {[%emt 0:02:09]} 12. cxd3 {[%emt 0:00:36]} Nbd7 {[%emt 0:03:09]} 13. Qc2 {[%emt 0:01:16]} Bb7 {[%emt 0:01:44]} 14. Bd2 {[%emt 0:05:43]} d5 {[%emt 0:02:47]} 15. b4 {[%emt 0:05:51]} d4 {[%emt 0:04:25]} 16. Rab1 {[%emt 0:04:02]} Rc8 {[%emt 0:04:25]} 17. Rb2 {[%emt 0:04:14]} Ba6 {[%emt 0:02:40]} 18. Rc1 {[%emt 0:03:00]} Qe7 {[%emt 0:05:50]} 19. Nh4 {[%emt 0:02:47]} h5 {[%emt 0:14:11]} 20. Rb3 {[%emt 0:06:10]} Nh7 {[%emt 0:04:26]} 21. Nf5 {[%emt 0:02:44]} Qf6 {[%emt 0:02:01]} 22. Nc5 {[%emt 0:05:08]} Nxc5 {[%emt 0:00:34]} 23. bxc5 {[%emt 0:00:07]} Rb8 {[%emt 0:02:47]} 24. Nd6 {[%emt 0:01:08]} Red8 {[%emt 0:01:56]} 25. Ba5 {[%emt 0:00:52]} Rxb3 {[%emt 0:01:35]} 26. Bxd8 {[%emt 0:00:28]} Rc3 {[%emt 0:02:45]} 27. Qxc3 {[%emt 0:02:05]} dxc3 {[%emt 0:05:16]} 28. Bxf6 {[%emt 0:00:14]} Nxf6 {[%emt 0:00:11]} 29. Rxc3 {[%emt 0:00:06]} Kf8 {[%emt 0:01:19]} 30. Ra3 {[%emt 0:00:17]} Bb5 {[%emt 0:00:18]} 31. Nxb5 {[%emt 0:00:10]} cxb5 {[%emt 0:00:05]} 32. Rxa7 {[%emt 0:00:07]} 1-0

[Event "57th Biel Festival ATO 2024"]
[Site "Biel"]
[Date "2024.07.16"]
[Round "1.20"]
[White "Juchler, Celine"]
[Black "Szelag, Zuzanna"]
[Result "0-1"]
[ECO "C02"]
[WhiteElo "1664"]
[BlackElo "1897"]
[Annotator "NA RC"]
[PlyCount "68"]
[EventDate "2024.07.03"]
[EventType "swiss"]
[EventCountry "SUI"]
[SourceTitle "playchess.com"]
[Source "ChessBase"]
[SourceQuality "1"]
[TimeControl "40/5400+30:1800+30"]

1. e4 {[%emt 0:00:04]} e6 {[%emt 0:00:13]} 2. d4 {[%emt 0:00:11]} d5 {[%emt 0:00:03]} 3. e5 {[%emt 0:00:19]} c5 {[%emt 0:00:05]} 4. c3 {[%emt 0:00:34]} Nc6 {[%emt 0:00:03]} 5. Nf3 {[%emt 0:00:34]} Bd7 {[%emt 0:00:06]} 6. Be2 {[%emt 0:02:06]} f6 {[%emt 0:00:06]} 7. exf6 {[%emt 0:01:31]} Nxf6 {[%emt 0:00:38]} 8. Bg5 {[%emt 0:01:41]} Bd6 {[%emt 0:03:20]} 9. O-O {[%emt 0:02:00]} O-O {[%emt 0:00:33]} 10. Re1 {[%emt 0:02:59]} Qc7 {[%emt 0:07:01]} 11. h3 {[%emt 0:02:15]} Ne4 {[%emt 0:04:02]} 12. Be3 {[%emt 0:02:03]} cxd4 {[%emt 0:03:08]} 13. cxd4 {[%emt 0:02:59]} Nb4 {[%emt 0:02:48]} 14. Qb3 {[%emt 0:11:08]} Nc2 {[%emt 0:06:25]} 15. Rc1 {[%emt 0:01:23]} Nxa1 {[%emt 0:00:24]} 16. Rxc7 {[%emt 0:00:07]} Nxb3 {[%emt 0:00:06]} 17. Rxd7 {[%emt 0:00:27]} Na5 {[%emt 0:00:34]} 18. Nbd2 {[%emt 0:02:31]} Rfd8 {[%emt 0:12:11]} 19. Rxd8+ {[%emt 0:03:26]} Rxd8 {[%emt 0:00:03]} 20. Nxe4 {[%emt 0:00:22]} dxe4 {[%emt 0:00:05]} 21. Ng5 {[%emt 0:00:20]} e5 {[%emt 0:04:37]} 22. d5 {[%emt 0:02:56]} b6 {[%emt 0:08:39]} 23. Nxe4 {[%emt 0:00:23]} Be7 {[%emt 0:02:43]} 24. Bg4 {[%emt 0:02:50]} Nc4 {[%emt 0:04:03]} 25. Be6+ {[%emt 0:01:35]} Kf8 {[%emt 0:01:21]} 26. Bc1 {[%emt 0:00:30]} Nd6 {[%emt 0:01:42]} 27. Ng3 {[%emt 0:05:45]} Nb7 {[%emt 0:03:39]} 28. b3 {[%emt 0:01:09]} Nc5 {[%emt 0:02:00]} 29. f4 {[%emt 0:05:00]} Nxe6 {[%emt 0:01:45]} 30. dxe6 {[%emt 0:02:07]} Rd1+ {[%emt 0:00:23]} 31. Kf2 {[%emt 0:00:07]} Rxc1 {[%emt 0:00:07]} 32. f5 {[%emt 0:00:09]} Bh4 {[%emt 0:00:19]} 33. Kf3 {[%emt 0:00:38]} Rc3+ {[%emt 0:00:10]} 34. Kg4 {[%emt 0:01:08]} Bxg3 {[%emt 0:00:16]} 0-1

[Event "57th Biel Festival ATO 2024"]
[Site "Biel"]
[Date "2024.07.16"]
[Round "1.21"]
[White "Schmid, Nicola"]
[Black "Kim, Sarang"]
[Result "1-0"]
[ECO "A06"]
[WhiteElo "1888"]
[BlackElo "1704"]
[Annotator "NA RC"]
[PlyCount "25"]
[EventDate "2024.07.03"]
[EventType "swiss"]
[EventCountry "SUI"]
[SourceTitle "playchess.com"]
[Source "ChessBase"]
[SourceQuality "1"]
[TimeControl "40/5400+30:1800+30"]

1. Nf3 {[%emt 0:00:21]} d5 {[%emt 0:00:49]} 2. b3 {[%emt 0:00:00]} c5 {[%emt 0:08:32]} 3. e3 {[%emt 0:20:35]} Nc6 {[%emt 0:00:30]} 4. Bb5 {[%emt 0:00:30]} Nf6 {[%emt 0:00:30]} 5. Bb2 {[%emt 0:00:30]} Bg4 {[%emt 0:00:30]} 6. h3 {[%emt 0:00:30]} Bh5 {[%emt 0:00:30]} 7. g4 {[%emt 0:00:30]} Bg6 {[%emt 0:00:30]} 8. Ne5 {[%emt 0:00:30]} Qc7 {[%emt 0:00:30]} 9. Bxc6+ {[%emt 0:00:30]} bxc6 {[%emt 0:00:30]} 10. d3 {[%emt 0:00:30]} e6 {[%emt 0:00:30]} 11. Nd2 {[%emt 0:00:30]} Bd6 {[%emt 0:01:51]} 12. Ndf3 {[%emt 0:06:41]} O-O {[%emt 0:21:56]} 13. Nd7 {[%emt 0:11:51]} 1-0

[Event "57th Biel Festival ATO 2024"]
[Site "Biel"]
[Date "2024.07.16"]
[Round "1.22"]
[White "Lincke, Paul"]
[Black "Wenger, Arejou"]
[Result "0-1"]
[ECO "B30"]
[WhiteElo "1653"]
[BlackElo "1875"]
[Annotator "NA RC"]
[PlyCount "42"]
[EventDate "2024.07.03"]
[EventType "swiss"]
[EventCountry "SUI"]
[SourceTitle "playchess.com"]
[Source "ChessBase"]
[SourceQuality "1"]
[TimeControl "40/5400+30:1800+30"]

1. e4 {[%emt 0:00:11]} c5 {[%emt 0:00:09]} 2. c4 {[%emt 0:00:41]} Nc6 {[%emt 0:01:36]} 3. Nf3 {[%emt 0:00:34]} Nf6 {[%emt 0:01:05]} 4. d3 {[%emt 0:00:25]} e6 {[%emt 0:01:12]} 5. Be2 {[%emt 0:00:42]} Be7 {[%emt 0:01:18]} 6. O-O {[%emt 0:00:22]} O-O {[%emt 0:00:57]} 7. a3 {[%emt 0:01:32]} d5 {[%emt 0:02:52]} 8. Nbd2 {[%emt 0:03:23]} Qc7 {[%emt 0:03:00]} 9. cxd5 {[%emt 0:03:38]} exd5 {[%emt 0:02:05]} 10. exd5 {[%emt 0:00:41]} Nxd5 {[%emt 0:00:47]} 11. Ne4 {[%emt 0:01:53]} Rd8 {[%emt 0:06:36]} 12. h3 {[%emt 0:03:34]} Bf5 {[%emt 0:05:55]} 13. Ng3 {[%emt 0:04:09]} Bg6 {[%emt 0:02:49]} 14. Bg5 {[%emt 0:04:33]} Bxg5 {[%emt 0:02:31]} 15. Nxg5 {[%emt 0:00:17]} Nf4 {[%emt 0:01:52]} 16. N3e4 {[%emt 0:05:26]} h6 {[%emt 0:02:48]} 17. Nf3 {[%emt 0:04:13]} Bxe4 {[%emt 0:02:24]} 18. Ne1 {[%emt 0:01:14]} Ne5 {[%emt 0:08:57]} 19. Qa4 {[%emt 0:00:42]} Nxe2+ {[%emt 0:00:29]} 20. Kh1 {[%emt 0:00:42]} Bxd3 {[%emt 0:01:55]} 21. Nxd3 {[%emt 0:00:44]} Nxd3 {[%emt 0:02:04]} 0-1

[Event "57th Biel Festival ATO 2024"]
[Site "Biel"]
[Date "2024.07.16"]
[Round "1.23"]
[White "Kessler, Meinrad"]
[Black "Wipf, Armin"]
[Result "1-0"]
[ECO "B01"]
[WhiteElo "1874"]
[BlackElo "1643"]
[Annotator "NA RC"]
[PlyCount "33"]
[EventDate "2024.07.03"]
[EventType "swiss"]
[EventCountry "SUI"]
[SourceTitle "playchess.com"]
[Source "ChessBase"]
[SourceQuality "1"]
[TimeControl "40/5400+30:1800+30"]

1. e4 {[%emt 0:00:09]} d5 {[%emt 0:00:17]} 2. exd5 {[%emt 0:00:10]} Nf6 {[%emt 0:00:15]} 3. d4 {[%emt 0:00:46]} Qxd5 {[%emt 0:00:32]} 4. Nc3 {[%emt 0:00:28]} Qa5 {[%emt 0:00:14]} 5. Bc4 {[%emt 0:00:40]} Bg4 {[%emt 0:00:51]} 6. Nf3 {[%emt 0:01:06]} e6 {[%emt 0:00:37]} 7. h3 {[%emt 0:00:25]} Bxf3 {[%emt 0:01:06]} 8. Qxf3 {[%emt 0:00:36]} c6 {[%emt 0:00:20]} 9. Bd2 {[%emt 0:00:50]} Qc7 {[%emt 0:00:23]} 10. O-O-O {[%emt 0:02:15]} Bd6 {[%emt 0:01:26]} 11. g4 {[%emt 0:02:52]} h6 {[%emt 0:02:42]} 12. h4 {[%emt 0:02:06]} Nbd7 {[%emt 0:06:13]} 13. g5 {[%emt 0:17:03]} hxg5 {[%emt 0:08:53]} 14. hxg5 {[%emt 0:00:46]} Rxh1 {[%emt 0:02:37]} 15. Rxh1 {[%emt 0:00:07]} Ng8 {[%emt 0:00:45]} 16. Ne4 {[%emt 0:15:04]} O-O-O {[%emt 0:02:48]} 17. Qxf7 {[%emt 0:09:09]} 1-0

[Event "57th Biel Festival ATO 2024"]
[Site "Biel"]
[Date "2024.07.16"]
[Round "1.24"]
[White "Christoffersen, Odd"]
[Black "Buntschu, Kurt"]
[Result "1/2-1/2"]
[ECO "B52"]
[WhiteElo "1676"]
[BlackElo "1868"]
[Annotator "NA RC"]
[PlyCount "54"]
[EventDate "2024.07.03"]
[EventType "swiss"]
[EventCountry "SUI"]
[SourceTitle "playchess.com"]
[Source "ChessBase"]
[SourceQuality "1"]
[TimeControl "40/5400+30:1800+30"]

1. e4 {[%emt 0:00:11]} c5 {[%emt 0:00:10]} 2. Nf3 {[%emt 0:00:09]} d6 {[%emt 0:00:06]} 3. Bb5+ {[%emt 0:00:21]} Bd7 {[%emt 0:00:10]} 4. Bxd7+ {[%emt 0:00:11]} Qxd7 {[%emt 0:00:25]} 5. O-O {[%emt 0:00:41]} Nf6 {[%emt 0:00:12]} 6. Qe2 {[%emt 0:04:30]} Nc6 {[%emt 0:01:18]} 7. c3 {[%emt 0:01:17]} g6 {[%emt 0:10:07]} 8. d4 {[%emt 0:00:55]} cxd4 {[%emt 0:01:21]} 9. cxd4 {[%emt 0:00:28]} Bg7 {[%emt 0:02:15]} 10. Bd2 {[%emt 0:03:11]} Rc8 {[%emt 0:05:12]} 11. d5 {[%emt 0:02:23]} Nb8 {[%emt 0:04:08]} 12. Nc3 {[%emt 0:07:50]} O-O {[%emt 0:03:35]} 13. Rfd1 {[%emt 0:04:42]} Rfe8 {[%emt 0:09:56]} 14. h3 {[%emt 0:00:49]} Qd8 {[%emt 0:06:33]} 15. Be3 {[%emt 0:06:03]} a6 {[%emt 0:07:40]} 16. Qd2 {[%emt 0:04:02]} Nbd7 {[%emt 0:01:30]} 17. Nd4 {[%emt 0:02:35]} Ne5 {[%emt 0:05:24]} 18. b3 {[%emt 0:01:07]} Qa5 {[%emt 0:04:55]} 19. Rac1 {[%emt 0:03:36]} Rc7 {[%emt 0:02:32]} 20. f3 {[%emt 0:04:14]} Rec8 {[%emt 0:01:23]} 21. Nce2 {[%emt 0:06:11]} Qxd2 {[%emt 0:02:42]} 22. Bxd2 {[%emt 0:04:36]} Ned7 {[%emt 0:02:17]} 23. Be3 {[%emt 0:05:47]} Kf8 {[%emt 0:02:02]} 24. Kf1 {[%emt 0:00:36]} Rxc1 {[%emt 0:01:21]} 25. Bxc1 {[%emt 0:01:50]} Nc5 {[%emt 0:04:16]} 26. Be3 {[%emt 0:01:34]} Ke8 {[%emt 0:01:23]} 27. Ke1 {[%emt 0:02:32]} Kd8 {[%emt 0:00:51]} 1/2-1/2

[Event "57th Biel Festival ATO 2024"]
[Site "Biel"]
[Date "2024.07.16"]
[Round "1.25"]
[White "Keymer, Cecilia"]
[Black "Ademi, Rexhe"]
[Result "1/2-1/2"]
[ECO "E62"]
[WhiteElo "1865"]
[BlackElo "1635"]
[Annotator "NA RC"]
[PlyCount "131"]
[EventDate "2024.07.03"]
[EventType "swiss"]
[EventCountry "SUI"]
[SourceTitle "playchess.com"]
[Source "ChessBase"]
[SourceQuality "1"]
[TimeControl "40/5400+30:1800+30"]

1. d4 {[%emt 0:00:04]} Nf6 {[%emt 0:00:14]} 2. c4 {[%emt 0:00:06]} g6 {[%emt 0:00:13]} 3. g3 {[%emt 0:00:45]} Bg7 {[%emt 0:00:11]} 4. Bg2 {[%emt 0:00:26]} O-O {[%emt 0:00:22]} 5. Nc3 {[%emt 0:00:27]} c6 {[%emt 0:00:23]} 6. Nf3 {[%emt 0:03:47]} d6 {[%emt 0:00:59]} 7. e4 {[%emt 0:01:24]} Qa5 {[%emt 0:00:31]} 8. Bd2 {[%emt 0:04:46]} Qb6 {[%emt 0:00:37]} 9. Qc1 {[%emt 0:08:18]} Bg4 {[%emt 0:00:33]} 10. Be3 {[%emt 0:03:45]} Bxf3 {[%emt 0:01:53]} 11. Bxf3 {[%emt 0:00:17]} Nbd7 {[%emt 0:00:21]} 12. O-O {[%emt 0:02:58]} c5 {[%emt 0:00:37]} 13. dxc5 {[%emt 0:07:09]} dxc5 {[%emt 0:00:04]} 14. Bg2 {[%emt 0:05:43]} Ng4 {[%emt 0:01:32]} 15. Rb1 {[%emt 0:06:24]} Nxe3 {[%emt 0:00:17]} 16. Qxe3 {[%emt 0:01:37]} Bd4 {[%emt 0:00:31]} 17. Qc1 {[%emt 0:05:37]} Ne5 {[%emt 0:00:25]} 18. Nd5 {[%emt 0:03:04]} Qd8 {[%emt 0:00:45]} 19. b3 {[%emt 0:02:48]} e6 {[%emt 0:00:16]} 20. Nf4 {[%emt 0:05:43]} Qf6 {[%emt 0:00:49]} 21. Qc2 {[%emt 0:05:06]} Rad8 {[%emt 0:00:56]} 22. Ne2 {[%emt 0:05:53]} Nc6 {[%emt 0:03:14]} 23. Rbd1 {[%emt 0:03:17]} e5 {[%emt 0:01:17]} 24. Nxd4 {[%emt 0:03:09]} Nxd4 {[%emt 0:00:17]} 25. Qd3 {[%emt 0:02:31]} Rd6 {[%emt 0:01:00]} 26. Qe3 {[%emt 0:02:03]} Rfd8 {[%emt 0:00:27]} 27. f4 {[%emt 0:04:12]} exf4 {[%emt 0:02:13]} 28. gxf4 {[%emt 0:01:26]} Nc2 {[%emt 0:02:09]} 29. Rxd6 {[%emt 0:03:21]} Qxd6 {[%emt 0:00:30]} 30. Qf2 {[%emt 0:04:01]} Qd4 {[%emt 0:00:58]} 31. Qxd4 {[%emt 0:02:18]} cxd4 {[%emt 0:00:11]} 32. Rd1 {[%emt 0:01:33]} d3 {[%emt 0:00:37]} 33. Kf2 {[%emt 0:01:04]} b6 {[%emt 0:01:06]} 34. Bf1 {[%emt 0:00:53]} Nb4 {[%emt 0:01:04]} 35. a3 {[%emt 0:00:44]} Nc2 {[%emt 0:00:48]} 36. Rxd3 {[%emt 0:00:46]} Rxd3 {[%emt 0:02:16]} 37. Bxd3 {[%emt 0:00:02]} Nxa3 {[%emt 0:00:49]} 38. Ke3 {[%emt 0:00:43]} Kf8 {[%emt 0:01:55]} 39. Kd4 {[%emt 0:00:35]} a6 {[%emt 0:01:36]} 40. Kc3 {[%emt 0:00:00]} b5 {[%emt 0:00:00]} 41. cxb5 {[%emt 0:03:30]} Nxb5+ {[%emt 0:01:34]} 42. Bxb5 {[%emt 0:02:04]} axb5 {[%emt 0:00:10]} 43. Kb4 {[%emt 0:00:41]} Ke8 {[%emt 0:00:21]} 44. Kxb5 {[%emt 0:00:50]} Kd7 {[%emt 0:00:45]} 45. Kc5 {[%emt 0:02:37]} Kc7 {[%emt 0:04:56]} 46. e5 {[%emt 0:03:02]} h5 {[%emt 0:00:50]} 47. b4 {[%emt 0:00:35]} h4 {[%emt 0:00:11]} 48. h3 {[%emt 0:02:47]} Kd7 {[%emt 0:01:53]} 49. Kb6 {[%emt 0:01:30]} Ke6 {[%emt 0:00:54]} 50. Kc6 {[%emt 0:03:25]} Kf5 {[%emt 0:00:11]} 51. b5 {[%emt 0:00:50]} Kxf4 {[%emt 0:00:09]} 52. b6 {[%emt 0:01:07]} Kxe5 {[%emt 0:01:32]} 53. b7 {[%emt 0:00:30]} f5 {[%emt 0:00:30]} 54. b8=Q+ {[%emt 0:00:35]} Ke4 {[%emt 0:00:43]} 55. Qe8+ {[%emt 0:00:21]} Kf3 {[%emt 0:00:23]} 56. Qxg6 {[%emt 0:00:32]} f4 {[%emt 0:02:29]} 57. Qg4+ {[%emt 0:00:40]} Ke3 {[%emt 0:00:16]} 58. Qxh4 {[%emt 0:00:40]} f3 {[%emt 0:00:08]} 59. Qg3 {[%emt 0:01:34]} Ke2 {[%emt 0:00:15]} 60. h4 {[%emt 0:00:33]} f2 {[%emt 0:00:37]} 61. Qxf2+ {[%emt 0:00:14]} Kxf2 {[%emt 0:00:00]} 62. h5 {[%emt 0:00:02]} Kf3 {[%emt 0:00:09]} 63. h6 {[%emt 0:00:04]} Ke4 {[%emt 0:00:18]} 64. h7 {[%emt 0:00:06]} Kf3 {[%emt 0:00:08]} 65. h8=Q {[%emt 0:00:05]} Ke4 {[%emt 0:00:19]} 66. Kc5 {[%emt 0:00:24]} 1/2-1/2

[Event "57th Biel Festival ATO 2024"]
[Site "Biel"]
[Date "2024.07.16"]
[Round "1.26"]
[White "Moon, Sunwoong"]
[Black "Bracher, Juerg"]
[Result "0-1"]
[ECO "D02"]
[WhiteElo "1661"]
[BlackElo "1864"]
[Annotator "NA RC"]
[PlyCount "74"]
[EventDate "2024.07.03"]
[EventType "swiss"]
[EventCountry "SUI"]
[SourceTitle "playchess.com"]
[Source "ChessBase"]
[SourceQuality "1"]
[TimeControl "40/5400+30:1800+30"]

1. d4 {[%emt 0:00:03]} d5 {[%emt 0:00:06]} 2. Bf4 {[%emt 0:00:07]} c6 {[%emt 0:00:15]} 3. e3 {[%emt 0:00:18]} Nf6 {[%emt 0:00:35]} 4. Nf3 {[%emt 0:00:20]} Bg4 {[%emt 0:00:35]} 5. Nbd2 {[%emt 0:00:29]} e6 {[%emt 0:00:11]} 6. h3 {[%emt 0:01:18]} Bh5 {[%emt 0:00:14]} 7. Qc1 {[%emt 0:00:26]} Bd6 {[%emt 0:00:24]} 8. Bxd6 {[%emt 0:01:11]} Qxd6 {[%emt 0:00:13]} 9. c4 {[%emt 0:00:17]} Nbd7 {[%emt 0:02:13]} 10. Qc3 {[%emt 0:03:29]} Rc8 {[%emt 0:05:00]} 11. Ne5 {[%emt 0:06:30]} O-O {[%emt 0:13:41]} 12. c5 {[%emt 0:01:28]} Qc7 {[%emt 0:00:23]} 13. f4 {[%emt 0:00:32]} Nxe5 {[%emt 0:10:46]} 14. fxe5 {[%emt 0:00:21]} Nd7 {[%emt 0:00:13]} 15. e4 {[%emt 0:04:54]} b6 {[%emt 0:06:45]} 16. b4 {[%emt 0:01:02]} a5 {[%emt 0:00:34]} 17. a3 {[%emt 0:00:24]} Ra8 {[%emt 0:04:01]} 18. Bd3 {[%emt 0:00:56]} f6 {[%emt 0:00:36]} 19. bxa5 {[%emt 0:22:44]} bxc5 {[%emt 0:01:38]} 20. g4 {[%emt 0:03:37]} cxd4 {[%emt 0:03:15]} 21. Qxd4 {[%emt 0:00:39]} fxe5 {[%emt 0:00:51]} 22. Qc3 {[%emt 0:00:34]} Bg6 {[%emt 0:02:47]} 23. Rc1 {[%emt 0:02:45]} c5 {[%emt 0:01:46]} 24. exd5 {[%emt 0:00:27]} exd5 {[%emt 0:01:00]} 25. Bxg6 {[%emt 0:00:22]} hxg6 {[%emt 0:00:36]} 26. Qd3 {[%emt 0:00:19]} Qc6 {[%emt 0:03:03]} 27. h4 {[%emt 0:01:43]} e4 {[%emt 0:01:29]} 28. Qh3 {[%emt 0:01:19]} Ne5 {[%emt 0:02:54]} 29. Rb1 {[%emt 0:01:51]} Nd3+ {[%emt 0:00:35]} 30. Ke2 {[%emt 0:00:11]} Nf4+ {[%emt 0:00:11]} 31. Kd1 {[%emt 0:00:11]} Nxh3 {[%emt 0:00:27]} 32. Rxh3 {[%emt 0:00:08]} Qa4+ {[%emt 0:02:09]} 33. Kc1 {[%emt 0:00:36]} Qd4 {[%emt 0:02:27]} 34. h5 {[%emt 0:00:35]} e3 {[%emt 0:00:00]} 35. Nb3 {[%emt 0:00:21]} Rf1+ {[%emt 0:01:17]} 36. Kc2 {[%emt 0:00:10]} Rf2+ {[%emt 0:00:56]} 37. Kc1 {[%emt 0:00:16]} Qc3+ {[%emt 0:00:32]} 0-1

[Event "57th Biel Festival ATO 2024"]
[Site "Biel"]
[Date "2024.07.16"]
[Round "1.27"]
[White "Gafner, Lancelot"]
[Black "Brandes, Stefan"]
[Result "1-0"]
[ECO "B12"]
[WhiteElo "1864"]
[BlackElo "1624"]
[Annotator "NA RC"]
[PlyCount "85"]
[EventDate "2024.07.03"]
[EventType "swiss"]
[EventCountry "SUI"]
[SourceTitle "playchess.com"]
[Source "ChessBase"]
[SourceQuality "1"]
[TimeControl "40/5400+30:1800+30"]

1. e4 {[%emt 0:00:05]} c6 {[%emt 0:00:16]} 2. d4 {[%emt 0:00:08]} d5 {[%emt 0:00:03]} 3. e5 {[%emt 0:00:12]} Bf5 {[%emt 0:00:05]} 4. Nf3 {[%emt 0:00:14]} e6 {[%emt 0:00:17]} 5. Be2 {[%emt 0:00:11]} c5 {[%emt 0:00:15]} 6. Be3 {[%emt 0:00:33]} Qb6 {[%emt 0:00:56]} 7. Nc3 {[%emt 0:00:21]} Nc6 {[%emt 0:02:12]} 8. O-O {[%emt 0:01:20]} c4 {[%emt 0:06:54]} 9. b3 {[%emt 0:09:21]} Bb4 {[%emt 0:07:47]} 10. Na4 {[%emt 0:04:33]} Qa5 {[%emt 0:10:44]} 11. a3 {[%emt 0:05:55]} Bc3 {[%emt 0:07:15]} 12. Ra2 {[%emt 0:08:54]} Bg4 {[%emt 0:13:39]} 13. Nxc3 {[%emt 0:15:23]} Bxf3 {[%emt 0:00:55]} 14. b4 {[%emt 0:01:37]} Bxe2 {[%emt 0:02:00]} 15. Qxe2 {[%emt 0:04:08]} Qc7 {[%emt 0:10:36]} 16. Nb5 {[%emt 0:02:42]} Qe7 {[%emt 0:08:18]} 17. Nd6+ {[%emt 0:06:07]} Kd8 {[%emt 0:00:16]} 18. Qg4 {[%emt 0:12:42]} f5 {[%emt 0:01:38]} 19. Qh3 {[%emt 0:01:03]} Kc7 {[%emt 0:03:47]} 20. c3 {[%emt 0:03:52]} h5 {[%emt 0:01:23]} 21. a4 {[%emt 0:01:12]} g5 {[%emt 0:03:02]} 22. f4 {[%emt 0:02:08]} gxf4 {[%emt 0:10:03]} 23. Bxf4 {[%emt 0:00:55]} Qh7 {[%emt 0:00:48]} 24. a5 {[%emt 0:02:04]} Nce7 {[%emt 0:02:10]} 25. b5 {[%emt 0:01:48]} Ng6 {[%emt 0:00:35]} 26. Bg5 {[%emt 0:02:48]} Nh6 {[%emt 0:00:53]} 27. Bxh6 {[%emt 0:02:37]} Qxh6 {[%emt 0:00:17]} 28. Nf7 {[%emt 0:01:09]} Qg7 {[%emt 0:03:31]} 29. Nxh8 {[%emt 0:01:00]} Qxh8 {[%emt 0:00:24]} 30. b6+ {[%emt 0:03:55]} axb6 {[%emt 0:00:15]} 31. axb6+ {[%emt 0:00:12]} Kxb6 {[%emt 0:00:11]} 32. Rxa8 {[%emt 0:00:17]} Qxa8 {[%emt 0:00:01]} 33. Qxh5 {[%emt 0:00:15]} Nxe5 {[%emt 0:01:20]} 34. dxe5 {[%emt 0:00:15]} Qa3 {[%emt 0:00:41]} 35. Qf3 {[%emt 0:01:13]} Kc6 {[%emt 0:00:10]} 36. h4 {[%emt 0:00:34]} b5 {[%emt 0:00:04]} 37. h5 {[%emt 0:00:27]} b4 {[%emt 0:00:10]} 38. cxb4 {[%emt 0:00:29]} Qxb4 {[%emt 0:00:12]} 39. h6 {[%emt 0:01:13]} Qa4 {[%emt 0:01:56]} 40. Qh5 {[%emt 0:00:00]} Qa7+ {[%emt 0:00:00]} 41. Kh1 {[%emt 0:00:52]} Qh7 {[%emt 0:01:13]} 42. Qe8+ {[%emt 0:00:09]} Kc7 {[%emt 0:00:31]} 43. Qxe6 {[%emt 0:00:12]} 1-0